[Event "Chinese Championship-B Men 2024"]
[Site "Liaocheng"]
[Date "2024.04.24"]
[Round "7.7"]
[White "Hong, Mingren"]
[Black "Chen, Hongsen"]
[Result "0-1"]
[WhiteElo "1747"]
[BlackElo "2171"]
[PlyCount "160"]
[EventDate "2024.04.24"]
[EventType "swiss"]
[EventCountry "CHN"]
[TimeControl "5400+30"]

1. e4 {[%emt 0:00:06]} e5 {[%emt 0:01:07]} 2. Nf3 {[%emt 0:00:06]} Nc6 {[%emt 0:00:04]} 3. Nc3 {[%emt 0:00:05]} Nf6 {[%emt 0:01:44]} 4. Bb5 {[%emt 0:00:06]} d6 {[%emt 0:04:24]} 5. d4 {[%emt 0:00:37]} Bd7 {[%emt 0:00:07]} 6. O-O {[%emt 0:02:24]} exd4 {[%emt 0:04:15]} 7. Nxd4 {[%emt 0:00:14]} Be7 {[%emt 0:00:17]} 8. Bxc6 {[%emt 0:00:42]} bxc6 {[%emt 0:00:18]} 9. Bf4 {[%emt 0:00:55]} O-O {[%emt 0:03:17]} 10. h3 {[%emt 0:01:05]} Rb8 {[%emt 0:03:02]} 11. b3 {[%emt 0:02:17]} Re8 {[%emt 0:13:00]} 12. Re1 {[%emt 0:00:36]} g6 {[%emt 0:02:44]} 13. Qd3 {[%emt 0:02:08]} Nh5 {[%emt 0:02:22]} 14. Bh2 {[%emt 0:00:04]} Bf6 {[%emt 0:01:36]} 15. Rad1 {[%emt 0:00:09]} Qc8 {[%emt 0:05:53]} 16. Nde2 {[%emt 0:04:31]} Ng7 {[%emt 0:04:21]} 17. Qf3 {[%emt 0:00:44]} Qd8 {[%emt 0:03:05]} 18. Nc1 {[%emt 0:03:13]} Bg5 {[%emt 0:09:58]} 19. Nd3 {[%emt 0:06:02]} Ne6 {[%emt 0:00:38]} 20. Ne2 {[%emt 0:00:49]} Bh6 {[%emt 0:04:29]} 21. Qg3 {[%emt 0:05:58]} c5 {[%emt 0:07:42]} 22. Ndf4 {[%emt 0:04:26]} Bg7 {[%emt 0:06:50]} 23. Nxe6 {[%emt 0:00:24]} fxe6 {[%emt 0:00:34]} 24. c4 {[%emt 0:00:14]} a5 {[%emt 0:01:17]} 25. Qd3 {[%emt 0:01:06]} e5 {[%emt 0:02:07]} 26. Nc3 {[%emt 0:02:05]} Kh8 {[%emt 0:00:04]} 27. Rb1 {[%emt 0:02:08]} Bc6 {[%emt 0:00:35]} 28. a4 {[%emt 0:02:44]} Rb7 {[%emt 0:00:54]} 29. f3 {[%emt 0:00:23]} Qh4 {[%emt 0:00:25]} 30. Qe2 {[%emt 0:02:19]} Reb8 {[%emt 0:00:10]} 31. Nb5 {[%emt 0:01:12]} Be8 {[%emt 0:00:12]} 32. Red1 {[%emt 0:01:43]} g5 {[%emt 0:01:16]} 33. Qe1 {[%emt 0:00:37]} Qxe1+ {[%emt 0:01:37]} 34. Rxe1 {[%emt 0:00:48]} Bf8 {[%emt 0:00:32]} 35. Red1 {[%emt 0:00:15]} Kg7 {[%emt 0:00:37]} 36. Rd3 {[%emt 0:00:24]} Kf6 {[%emt 0:01:56]} 37. Rbd1 {[%emt 0:00:49]} Ke6 {[%emt 0:00:21]} 38. Bg3 {[%emt 0:02:01]} Be7 {[%emt 0:02:22]} 39. Be1 {[%emt 0:00:49]} Ra8 {[%emt 0:00:05]} 40. Kf2 {[%emt 0:01:42]} Bxb5 {[%emt 0:00:59]} 41. cxb5 {[%emt 0:00:12]} Rb6 {[%emt 0:01:06]} 42. Kg3 {[%emt 0:10:07]} c6 {[%emt 0:00:01]} 43. bxc6 {[%emt 0:00:05]} Rxc6 {[%emt 0:00:04]} 44. Kg4 {[%emt 0:00:45]} Rb6 {[%emt 0:03:46]} 45. Rc1 {[%emt 0:02:25]} Rab8 {[%emt 0:01:48]} 46. Rcc3 {[%emt 0:00:12]} Rb4 {[%emt 0:00:58]} 47. Kh5 {[%emt 0:01:36]} R4b7 {[%emt 0:01:20]} 48. Bd2 {[%emt 0:01:55]} Rg8 {[%emt 0:00:08]} 49. Rc4 {[%emt 0:02:04]} Bd8 {[%emt 0:00:04]} 50. Rc1 {[%emt 0:01:49]} Rf7 {[%emt 0:00:06]} 51. Kg4 {[%emt 0:00:35]} h5+ {[%emt 0:00:51]} 52. Kg3 {[%emt 0:02:15]} g4 {[%emt 0:00:05]} 53. Kh2 {[%emt 0:03:55]} Rfg7 {[%emt 0:04:54]} 54. fxg4 {[%emt 0:00:43]} hxg4 {[%emt 0:00:05]} 55. Rg3 {[%emt 0:00:20]} gxh3 {[%emt 0:01:52]} 56. Rxg7 {[%emt 0:00:06]} Rxg7 {[%emt 0:00:04]} 57. gxh3 {[%emt 0:01:31]} Rb7 {[%emt 0:00:03]} 58. Rc3 {[%emt 0:00:04]} Rb4 {[%emt 0:00:04]} 59. Re3 {[%emt 0:00:23]} Rd4 {[%emt 0:00:03]} 60. Bc3 {[%emt 0:00:19]} Rd1 {[%emt 0:00:03]} 61. Rg3 {[%emt 0:02:53]} Rb1 {[%emt 0:00:26]} 62. Rg6+ {[%emt 0:01:10]} Kd7 {[%emt 0:00:05]} 63. Rg7+ {[%emt 0:00:26]} Kc6 {[%emt 0:00:03]} 64. Rg6 {[%emt 0:00:12]} Kd7 {[%emt 0:00:49]} 65. Rg7+ {[%emt 0:00:03]} Kc8 {[%emt 0:00:35]} 66. Rg8 {[%emt 0:00:22]} Kd7 {[%emt 0:00:58]} 67. Rg7+ {[%emt 0:01:03]} Be7 {[%emt 0:02:57]} 68. Bxa5 {[%emt 0:00:30]} Rxb3 {[%emt 0:00:04]} 69. Be1 {[%emt 0:00:21]} Ke6 {[%emt 0:00:50]} 70. Rg6+ {[%emt 0:00:11]} Kf7 {[%emt 0:00:05]} 71. Rg3 {[%emt 0:00:33]} Rb2+ {[%emt 0:01:18]} 72. Rg2 {[%emt 0:00:05]} Rb1 {[%emt 0:00:07]} 73. Re2 {[%emt 0:01:35]} Ra1 {[%emt 0:00:22]} 74. a5 {[%emt 0:00:26]} Bd8 {[%emt 0:00:05]} 75. Rf2+ {[%emt 0:04:32]} Ke6 {[%emt 0:00:56]} 76. Rf8 {[%emt 0:00:08]} Be7 {[%emt 0:00:53]} 77. Rf1 {[%emt 0:00:40]} Bh4 {[%emt 0:00:24]} 78. a6 {[%emt 0:00:57]} Bxe1 {[%emt 0:00:10]} 79. a7 {[%emt 0:00:18]} Ra2+ {[%emt 0:00:04]} 80. Kh1 {[%emt 0:00:26]} Bb4 {[%emt 0:00:04]} 0-1

[Event "Chinese Championship-B Men 2024"]
[Site "Liaocheng"]
[Date "2024.04.24"]
[Round "7.8"]
[White "Zhu, Yilun"]
[Black "Yu, Chaojie"]
[Result "1/2-1/2"]
[WhiteElo "2125"]
[BlackElo "2047"]
[PlyCount "105"]
[EventDate "2024.04.24"]
[EventType "swiss"]
[EventCountry "CHN"]
[TimeControl "5400+30"]

1. e4 {[%emt 0:00:03]} c5 {[%emt 0:00:19]} 2. Nf3 {[%emt 0:00:05]} d6 {[%emt 0:00:40]} 3. d4 {[%emt 0:00:04]} cxd4 {[%emt 0:00:47]} 4. Nxd4 {[%emt 0:00:05]} Nf6 {[%emt 0:00:19]} 5. Nc3 {[%emt 0:00:04]} Nc6 {[%emt 0:00:31]} 6. f3 {[%emt 0:00:06]} e6 {[%emt 0:02:53]} 7. Be3 {[%emt 0:00:10]} Be7 {[%emt 0:00:27]} 8. Qd2 {[%emt 0:00:04]} O-O {[%emt 0:03:03]} 9. O-O-O {[%emt 0:00:22]} a6 {[%emt 0:01:26]} 10. g4 {[%emt 0:00:03]} Nxd4 {[%emt 0:06:12]} 11. Bxd4 {[%emt 0:00:38]} b5 {[%emt 0:01:04]} 12. g5 {[%emt 0:00:06]} Nd7 {[%emt 0:00:54]} 13. h4 {[%emt 0:00:02]} Bb7 {[%emt 0:03:04]} 14. a3 {[%emt 0:00:06]} Ne5 {[%emt 0:09:28]} 15. Qe3 {[%emt 0:03:54]} Qc7 {[%emt 0:08:43]} 16. h5 {[%emt 0:00:27]} f5 {[%emt 0:07:50]} 17. f4 {[%emt 0:21:19]} Ng4 {[%emt 0:16:02]} 18. Qg1 {[%emt 0:00:08]} e5 {[%emt 0:03:05]} 19. Bb6 {[%emt 0:00:06]} Qc8 {[%emt 0:02:19]} 20. Bh3 {[%emt 0:05:43]} Qc4 {[%emt 0:09:40]} 21. g6 {[%emt 0:14:37]} Bxe4 {[%emt 0:05:03]} 22. gxh7+ {[%emt 0:00:50]} Kh8 {[%emt 0:00:08]} 23. Nxe4 {[%emt 0:06:52]} Qxe4 {[%emt 0:00:08]} 24. fxe5 {[%emt 0:00:12]} Rac8 {[%emt 0:01:17]} 25. Qg2 {[%emt 0:06:07]} Qxg2 26. Bxg2 {[%emt 0:00:02]} dxe5 {[%emt 0:00:32]} 27. Bh3 {[%emt 0:00:49]} Rc6 {[%emt 0:01:49]} 28. Ba7 {[%emt 0:01:17]} Bg5+ {[%emt 0:00:42]} 29. Kb1 {[%emt 0:00:02]} Ne3 {[%emt 0:05:37]} 30. Rdg1 {[%emt 0:00:27]} Bf4 {[%emt 0:04:30]} 31. Rg6 {[%emt 0:00:26]} Rc7 {[%emt 0:04:35]} 32. Bb6 {[%emt 0:00:06]} Rd7 {[%emt 0:00:28]} 33. h6 {[%emt 0:05:24]} gxh6 {[%emt 0:00:45]} 34. Rg8+ {[%emt 0:00:17]} Rxg8 {[%emt 0:00:05]} 35. hxg8=Q+ {[%emt 0:00:05]} Kxg8 {[%emt 0:00:04]} 36. Bxe3 {[%emt 0:00:02]} Bxe3 {[%emt 0:00:06]} 37. Bxf5 {[%emt 0:00:01]} Rd6 {[%emt 0:00:35]} 38. Rh3 {[%emt 0:00:36]} Bf4 {[%emt 0:00:19]} 39. Rd3 {[%emt 0:00:27]} Rxd3 {[%emt 0:01:33]} 40. cxd3 {[%emt 0:00:26]} h5 {[%emt 0:00:46]} 41. Kc2 {[%emt 0:00:30]} h4 {[%emt 0:00:42]} 42. Kd1 {[%emt 0:00:53]} Kf7 {[%emt 0:00:44]} 43. b3 {[%emt 0:00:03]} Ke7 {[%emt 0:00:20]} 44. a4 {[%emt 0:00:39]} Kd6 {[%emt 0:00:33]} 45. axb5 {[%emt 0:00:03]} axb5 {[%emt 0:00:04]} 46. Ke2 {[%emt 0:02:03]} Kd5 {[%emt 0:00:26]} 47. Bd7 {[%emt 0:00:07]} b4 {[%emt 0:01:02]} 48. Kf2 {[%emt 0:00:35]} Kd4 {[%emt 0:00:23]} 49. Bb5 {[%emt 0:00:06]} h3 {[%emt 0:00:11]} 50. Kg1 {[%emt 0:01:48]} Ke3 {[%emt 0:00:33]} 51. Kh1 {[%emt 0:00:12]} Bg3 {[%emt 0:00:19]} 52. Kg1 {[%emt 0:00:22]} Kd2 {[%emt 0:00:19]} 53. Kh1 {[%emt 0:00:11]} 1/2-1/2

[Event "Chinese Championship-B Men 2024"]
[Site "Liaocheng"]
[Date "2024.04.24"]
[Round "7.9"]
[White "Zhang, Yinzhe"]
[Black "Jin, Yueheng"]
[Result "0-1"]
[WhiteElo "1927"]
[BlackElo "2407"]
[PlyCount "118"]
[EventDate "2024.04.24"]
[EventType "swiss"]
[EventCountry "CHN"]
[TimeControl "5400+30"]

1. b3 {[%emt 0:00:01]} d5 {[%emt 0:00:18]} 2. Bb2 {[%emt 0:00:07]} Nf6 {[%emt 0:00:05]} 3. e3 {[%emt 0:00:16]} Bf5 {[%emt 0:00:05]} 4. Nf3 {[%emt 0:00:12]} e6 {[%emt 0:00:03]} 5. Nh4 {[%emt 0:00:11]} Bg4 {[%emt 0:00:04]} 6. Be2 {[%emt 0:00:09]} Bxe2 {[%emt 0:00:04]} 7. Qxe2 {[%emt 0:00:10]} c5 {[%emt 0:00:23]} 8. Nf3 {[%emt 0:02:18]} Nc6 {[%emt 0:00:15]} 9. O-O {[%emt 0:01:26]} Be7 {[%emt 0:00:11]} 10. d3 {[%emt 0:00:13]} O-O {[%emt 0:01:10]} 11. Nbd2 {[%emt 0:01:05]} b5 {[%emt 0:02:32]} 12. a3 {[%emt 0:05:23]} Qb6 {[%emt 0:04:28]} 13. Rfb1 {[%emt 0:03:20]} Rfd8 {[%emt 0:04:00]} 14. c3 {[%emt 0:12:20]} a6 {[%emt 0:18:09]} 15. h3 {[%emt 0:12:21]} Ra7 {[%emt 0:04:27]} 16. Bc1 {[%emt 0:02:05]} Rad7 {[%emt 0:03:30]} 17. b4 {[%emt 0:05:07]} c4 {[%emt 0:00:33]} 18. d4 {[%emt 0:01:06]} Bd6 {[%emt 0:59:13]} 19. Bb2 {[%emt 0:52:10]} e5 {[%emt 0:00:30]} 20. Re1 {[%emt 0:00:30]} e4 {[%emt 0:00:30]} 21. Nh4 {[%emt 0:00:30]} Bb8 {[%emt 0:00:30]} 22. f4 {[%emt 0:00:00]} exf3 {[%emt 0:00:00]} 23. Qxf3 {[%emt 0:00:00]} Re8 {[%emt 0:01:00]} 24. Nf5 {[%emt 0:01:30]} g6 {[%emt 0:00:30]} 25. Rf1 {[%emt 0:00:30]} Re6 {[%emt 0:00:30]} 26. Nh6+ {[%emt 0:00:00]} Kg7 {[%emt 0:00:00]} 27. Ng4 {[%emt 0:00:00]} Qc7 {[%emt 0:00:00]} 28. Qf4 {[%emt 0:00:00]} Nxg4 {[%emt 0:00:00]} 29. hxg4 {[%emt 0:00:00]} Qd8 {[%emt 0:00:00]} 30. Qf2 {[%emt 0:00:00]} Qg5 {[%emt 0:00:00]} 31. Rae1 {[%emt 0:00:00]} Qxg4 {[%emt 0:00:00]} 32. Qf3 {[%emt 0:00:00]} Qh4 {[%emt 0:00:00]} 33. Qh3 {[%emt 0:00:00]} Qxh3 {[%emt 0:00:00]} 34. gxh3 {[%emt 0:00:00]} f5 {[%emt 0:00:00]} 35. Kf2 {[%emt 0:00:00]} Rde7 {[%emt 0:00:00]} 36. Nf3 {[%emt 0:00:00]} Nd8 {[%emt 0:00:00]} 37. Bc1 {[%emt 0:00:00]} Nf7 {[%emt 0:00:00]} 38. Bd2 {[%emt 0:00:00]} Nd6 {[%emt 0:00:00]} 39. Ng5 {[%emt 0:00:00]} Ne4+ {[%emt 0:00:00]} 40. Nxe4 {[%emt 0:00:00]} Rxe4 {[%emt 0:00:00]} 41. Rg1 {[%emt 0:01:48]} Kf6 {[%emt 0:00:00]} 42. Ref1 {[%emt 0:01:07]} g5 {[%emt 0:00:00]} 43. Ke2 {[%emt 0:00:13]} Kg6 {[%emt 0:00:00]} 44. Kd1 {[%emt 0:00:06]} h5 {[%emt 0:00:00]} 45. Kc2 {[%emt 0:00:36]} Rf7 {[%emt 0:00:00]} 46. a4 {[%emt 0:00:36]} g4 {[%emt 0:00:00]} 47. axb5 {[%emt 0:00:12]} axb5 {[%emt 0:00:00]} 48. Ra1 {[%emt 0:00:30]} Ra7 {[%emt 0:00:00]} 49. Rxa7 {[%emt 0:01:26]} Bxa7 {[%emt 0:00:00]} 50. Kd1 {[%emt 0:00:03]} Re6 {[%emt 0:00:00]} 51. Ke2 {[%emt 0:01:46]} Ra6 {[%emt 0:00:00]} 52. Rf1 {[%emt 0:00:34]} g3 {[%emt 0:04:12]} 53. h4 {[%emt 0:01:33]} Ra2 {[%emt 0:00:10]} 54. Rd1 {[%emt 0:03:08]} Bb8 {[%emt 0:00:45]} 55. Kf3 {[%emt 0:00:03]} Rc2 {[%emt 0:00:23]} 56. Kg2 {[%emt 0:01:15]} f4 {[%emt 0:00:44]} 57. Kf3 {[%emt 0:00:01]} g2 {[%emt 0:00:43]} 58. Ke2 {[%emt 0:00:58]} fxe3 {[%emt 0:00:21]} 59. Kxe3 {[%emt 0:00:04]} Bh2 {[%emt 0:00:06]} 0-1

[Event "Chinese Championship-B Men 2024"]
[Site "Liaocheng"]
[Date "2024.04.24"]
[Round "7.10"]
[White "Wang, Zihang"]
[Black "Xie, Jianjun"]
[Result "1/2-1/2"]
[WhiteElo "1846"]
[BlackElo "2384"]
[PlyCount "66"]
[EventDate "2024.04.24"]
[EventType "swiss"]
[EventCountry "CHN"]
[TimeControl "5400+30"]

1. e4 {[%emt 0:00:03]} c6 {[%emt 0:00:08]} 2. d4 {[%emt 0:00:41]} d5 {[%emt 0:00:07]} 3. exd5 {[%emt 0:01:22]} cxd5 {[%emt 0:00:05]} 4. Bd3 {[%emt 0:00:03]} Nc6 {[%emt 0:00:20]} 5. c3 {[%emt 0:00:05]} Nf6 {[%emt 0:00:45]} 6. Bf4 {[%emt 0:00:38]} Bg4 {[%emt 0:00:13]} 7. Qb3 {[%emt 0:00:09]} Na5 {[%emt 0:02:02]} 8. Qa4+ {[%emt 0:01:32]} Bd7 {[%emt 0:00:15]} 9. Qc2 {[%emt 0:03:17]} Qb6 {[%emt 0:00:48]} 10. Nf3 {[%emt 0:06:47]} Bb5 {[%emt 0:00:17]} 11. Bxb5+ {[%emt 0:03:34]} Qxb5 {[%emt 0:00:02]} 12. Na3 {[%emt 0:06:01]} Qb6 {[%emt 0:06:43]} 13. O-O {[%emt 0:05:47]} Nc6 {[%emt 0:04:25]} 14. Qb3 {[%emt 0:14:59]} e6 {[%emt 0:10:06]} 15. Qxb6 {[%emt 0:11:42]} axb6 {[%emt 0:00:02]} 16. Nb5 {[%emt 0:00:09]} Rc8 {[%emt 0:19:00]} 17. h3 {[%emt 0:05:51]} Kd7 {[%emt 0:05:06]} 18. a4 {[%emt 0:04:50]} Be7 {[%emt 0:01:48]} 19. Ne5+ {[%emt 0:11:13]} Nxe5 {[%emt 0:00:07]} 20. Bxe5 {[%emt 0:02:14]} Ne8 {[%emt 0:05:32]} 21. a5 {[%emt 0:03:04]} f6 {[%emt 0:01:52]} 22. Bg3 {[%emt 0:00:35]} bxa5 {[%emt 0:00:22]} 23. Rxa5 {[%emt 0:00:18]} Nd6 {[%emt 0:00:12]} 24. Nxd6 {[%emt 0:03:53]} Bxd6 {[%emt 0:00:02]} 25. Bxd6 {[%emt 0:00:13]} Kxd6 {[%emt 0:00:03]} 26. Ra7 {[%emt 0:00:42]} Rc7 {[%emt 0:03:20]} 27. f4 {[%emt 0:01:14]} Re8 {[%emt 0:11:01]} 28. Rd1 {[%emt 0:02:30]} h6 {[%emt 0:03:08]} 29. h4 {[%emt 0:01:24]} g5 {[%emt 0:03:02]} 30. hxg5 {[%emt 0:00:24]} hxg5 {[%emt 0:02:10]} 31. fxg5 {[%emt 0:00:10]} f5 {[%emt 0:02:59]} 32. Rd3 {[%emt 0:02:15]} Rg8 {[%emt 0:00:58]} 33. Rg3 {[%emt 0:00:52]} Rcg7 {[%emt 0:00:08]} 1/2-1/2

[Event "Chinese Championship-B Men 2024"]
[Site "Liaocheng"]
[Date "2024.04.24"]
[Round "7.11"]
[White "Gong, Changda"]
[Black "Chen, Zhongkai"]
[Result "1-0"]
[WhiteElo "2170"]
[BlackElo "1832"]
[PlyCount "55"]
[EventDate "2024.04.24"]
[EventType "swiss"]
[EventCountry "CHN"]
[TimeControl "5400+30"]

1. c4 {[%emt 0:03:16]} c5 {[%emt 0:00:26]} 2. g3 {[%emt 0:00:19]} Nc6 {[%emt 0:00:12]} 3. Bg2 {[%emt 0:00:29]} d6 {[%emt 0:00:17]} 4. Nc3 {[%emt 0:00:08]} Nf6 {[%emt 0:00:05]} 5. Nf3 {[%emt 0:00:08]} g6 {[%emt 0:00:04]} 6. d4 {[%emt 0:00:43]} cxd4 {[%emt 0:00:05]} 7. Nxd4 {[%emt 0:00:03]} Bd7 {[%emt 0:00:17]} 8. O-O {[%emt 0:00:18]} Bg7 {[%emt 0:00:03]} 9. Nc2 {[%emt 0:00:51]} O-O {[%emt 0:00:38]} 10. b3 {[%emt 0:02:31]} Rc8 {[%emt 0:02:05]} 11. Bb2 {[%emt 0:00:49]} Qa5 {[%emt 0:02:08]} 12. Qd2 {[%emt 0:04:07]} Qh5 {[%emt 0:04:06]} 13. Rfe1 {[%emt 0:04:13]} Bh6 {[%emt 0:04:31]} 14. Qd1 {[%emt 0:02:47]} Ng4 {[%emt 0:03:59]} 15. h3 {[%emt 0:00:29]} Nf6 {[%emt 0:20:06]} 16. e4 {[%emt 0:00:08]} Bg7 {[%emt 0:00:58]} 17. Nd5 {[%emt 0:07:29]} Qxd1 {[%emt 0:01:17]} 18. Raxd1 {[%emt 0:00:36]} Ne8 {[%emt 0:00:20]} 19. Nd4 {[%emt 0:03:09]} Bxd4 {[%emt 0:01:35]} 20. Bxd4 {[%emt 0:00:02]} Nc7 {[%emt 0:00:02]} 21. Bb2 {[%emt 0:03:25]} Rfe8 {[%emt 0:00:57]} 22. Rd2 {[%emt 0:02:50]} b5 {[%emt 0:00:30]} 23. Nxc7 {[%emt 0:01:46]} Rxc7 {[%emt 0:00:01]} 24. cxb5 {[%emt 0:00:04]} Na5 {[%emt 0:01:38]} 25. e5 {[%emt 0:04:57]} Bxb5 {[%emt 0:00:30]} 26. exd6 {[%emt 0:01:06]} Rd7 {[%emt 0:00:59]} 27. Rd5 {[%emt 0:01:20]} a6 {[%emt 0:00:13]} 28. a4 {[%emt 0:00:16]} 1-0

[Event "Chinese Championship-B Men 2024"]
[Site "Liaocheng"]
[Date "2024.04.24"]
[Round "7.12"]
[White "Zhang, Haoxuan(Zj)"]
[Black "Hou, Yifan b"]
[Result "1/2-1/2"]
[WhiteElo "1851"]
[BlackElo "2161"]
[PlyCount "81"]
[EventDate "2024.04.24"]
[EventType "swiss"]
[EventCountry "CHN"]
[TimeControl "5400+30"]

1. e4 {[%emt 0:00:02]} c5 {[%emt 0:03:31]} 2. Nf3 {[%emt 0:00:06]} Nc6 {[%emt 0:00:15]} 3. c3 {[%emt 0:00:09]} Nf6 {[%emt 0:00:21]} 4. e5 {[%emt 0:00:05]} Nd5 {[%emt 0:00:05]} 5. d4 {[%emt 0:00:08]} cxd4 {[%emt 0:00:08]} 6. cxd4 {[%emt 0:00:05]} d6 {[%emt 0:00:06]} 7. Bc4 {[%emt 0:00:07]} Nb6 {[%emt 0:01:15]} 8. Bb5 {[%emt 0:01:08]} dxe5 {[%emt 0:00:34]} 9. Nxe5 {[%emt 0:00:06]} Bd7 {[%emt 0:00:07]} 10. Bxc6 {[%emt 0:02:48]} Bxc6 {[%emt 0:01:40]} 11. Nxc6 {[%emt 0:00:05]} bxc6 {[%emt 0:00:05]} 12. O-O {[%emt 0:01:09]} e6 {[%emt 0:02:44]} 13. Qf3 {[%emt 0:01:56]} Qd5 {[%emt 0:02:37]} 14. Qxd5 {[%emt 0:02:20]} cxd5 {[%emt 0:05:49]} 15. b3 {[%emt 0:05:35]} Be7 {[%emt 0:03:41]} 16. Nd2 {[%emt 0:02:07]} O-O {[%emt 0:05:17]} 17. Bb2 {[%emt 0:03:20]} Rfc8 {[%emt 0:01:08]} 18. Rac1 {[%emt 0:01:43]} a5 {[%emt 0:17:42]} 19. Rxc8+ {[%emt 0:06:47]} Nxc8 {[%emt 0:00:31]} 20. Rc1 {[%emt 0:05:29]} a4 {[%emt 0:02:56]} 21. bxa4 {[%emt 0:01:26]} Nb6 {[%emt 0:00:14]} 22. Rc6 {[%emt 0:05:44]} Nxa4 {[%emt 0:01:11]} 23. Bc1 {[%emt 0:00:17]} h6 {[%emt 0:03:45]} 24. Kf1 {[%emt 0:02:00]} Bb4 {[%emt 0:10:45]} 25. Nb3 {[%emt 0:01:20]} Kf8 {[%emt 0:00:30]} 26. a3 {[%emt 0:04:11]} Be7 {[%emt 0:01:33]} 27. Nd2 {[%emt 0:10:40]} Ke8 {[%emt 0:03:26]} 28. Nf3 {[%emt 0:00:16]} Bf6 {[%emt 0:01:03]} 29. Bf4 {[%emt 0:08:46]} Nb2 {[%emt 0:01:46]} 30. Ne5 {[%emt 0:00:41]} g5 {[%emt 0:02:05]} 31. Bc1 {[%emt 0:01:01]} Bxe5 {[%emt 0:01:34]} 32. Bxb2 {[%emt 0:00:14]} Kd7 {[%emt 0:00:10]} 33. Rb6 {[%emt 0:01:26]} Rb8 {[%emt 0:03:45]} 34. Rxb8 {[%emt 0:00:20]} Bxb8 {[%emt 0:00:01]} 35. Ke2 {[%emt 0:02:39]} Kc6 {[%emt 0:00:11]} 36. a4 {[%emt 0:00:24]} Kb6 {[%emt 0:03:25]} 37. Bc3 {[%emt 0:00:11]} h5 {[%emt 0:00:15]} 38. h3 {[%emt 0:01:46]} g4 {[%emt 0:00:40]} 39. hxg4 {[%emt 0:00:51]} hxg4 {[%emt 0:00:02]} 40. f3 {[%emt 0:00:28]} gxf3+ {[%emt 0:00:25]} 41. Kxf3 {[%emt 0:01:25]} 1/2-1/2

[Event "Chinese Championship-B Men 2024"]
[Site "Liaocheng"]
[Date "2024.04.24"]
[Round "7.13"]
[White "Xia, Jinnan"]
[Black "Cheng, Yuanda"]
[Result "1-0"]
[WhiteElo "1819"]
[BlackElo "2068"]
[PlyCount "135"]
[EventDate "2024.04.24"]
[EventType "swiss"]
[EventCountry "CHN"]
[TimeControl "5400+30"]

1. d4 {[%emt 0:00:02]} Nf6 {[%emt 0:00:58]} 2. c4 {[%emt 0:00:04]} c6 {[%emt 0:02:11]} 3. Nc3 {[%emt 0:00:13]} d5 {[%emt 0:00:07]} 4. Nf3 {[%emt 0:00:03]} e6 {[%emt 0:00:05]} 5. e3 {[%emt 0:00:03]} Nbd7 {[%emt 0:00:05]} 6. Qc2 {[%emt 0:00:07]} Bd6 {[%emt 0:00:31]} 7. b3 {[%emt 0:00:22]} O-O {[%emt 0:00:57]} 8. Be2 {[%emt 0:00:02]} e5 {[%emt 0:01:45]} 9. dxe5 {[%emt 0:00:49]} Nxe5 {[%emt 0:00:10]} 10. cxd5 {[%emt 0:01:21]} cxd5 {[%emt 0:01:35]} 11. Nd4 {[%emt 0:00:15]} a6 {[%emt 0:03:07]} 12. Bb2 {[%emt 0:05:26]} Re8 {[%emt 0:04:36]} 13. Rd1 {[%emt 0:05:25]} Qc7 {[%emt 0:14:37]} 14. h3 {[%emt 0:01:35]} Bd7 {[%emt 0:01:22]} 15. Rc1 {[%emt 0:01:59]} Rac8 {[%emt 0:00:51]} 16. O-O {[%emt 0:06:00]} Qa5 {[%emt 0:01:58]} 17. Bd3 {[%emt 0:10:36]} Bb4 {[%emt 0:04:10]} 18. Nde2 {[%emt 0:03:52]} Ne4 {[%emt 0:17:13]} 19. a3 {[%emt 0:14:31]} Bd6 {[%emt 0:05:44]} 20. Qd1 {[%emt 0:11:01]} Ng5 {[%emt 0:28:43]} 21. f4 {[%emt 0:12:09]} Nxh3+ {[%emt 0:03:17]} 22. gxh3 {[%emt 0:00:43]} Bxh3 {[%emt 0:00:01]} 23. fxe5 {[%emt 0:08:49]} Rxe5 {[%emt 0:00:17]} 24. Rf3 {[%emt 0:11:45]} Rg5+ {[%emt 0:00:36]} 25. Kf2 {[%emt 0:00:05]} Bg4 {[%emt 0:01:00]} 26. Qh1 {[%emt 0:01:48]} h6 {[%emt 0:01:14]} 27. b4 {[%emt 0:01:04]} Qd8 {[%emt 0:00:51]} 28. Nf4 {[%emt 0:00:37]} d4 {[%emt 0:01:02]} 29. Ne4 {[%emt 0:00:59]} dxe3+ {[%emt 0:01:32]} 30. Kxe3 {[%emt 0:00:30]} Rxc1 {[%emt 0:01:46]} 31. Bxc1 {[%emt 0:01:19]} Bxf3 {[%emt 0:00:32]} 32. Qxf3 {[%emt 0:00:11]} Rg1 {[%emt 0:01:31]} 33. Nxd6 {[%emt 0:01:24]} Qxd6 {[%emt 0:01:34]} 34. Bb2 {[%emt 0:00:41]} g5 {[%emt 0:00:50]} 35. Ne2 {[%emt 0:00:09]} Rd1 {[%emt 0:00:22]} 36. Qe4 {[%emt 0:00:26]} Kf8 {[%emt 0:00:32]} 37. Bd4 {[%emt 0:00:19]} Qe6 {[%emt 0:00:14]} 38. Qxe6 {[%emt 0:00:31]} fxe6 {[%emt 0:00:01]} 39. a4 {[%emt 0:00:46]} Kf7 {[%emt 0:00:31]} 40. a5 {[%emt 0:00:23]} h5 {[%emt 0:00:13]} 41. Be4 {[%emt 0:00:16]} h4 {[%emt 0:00:45]} 42. Bxb7 {[%emt 0:00:48]} h3 {[%emt 0:00:52]} 43. Bc5 {[%emt 0:01:28]} h2 {[%emt 0:00:20]} 44. Ng3 {[%emt 0:00:09]} e5 {[%emt 0:00:04]} 45. Kf2 {[%emt 0:00:19]} Rg1 {[%emt 0:00:33]} 46. Bd5+ {[%emt 0:01:30]} Kf6 {[%emt 0:00:18]} 47. Bg2 {[%emt 0:00:33]} g4 {[%emt 0:00:08]} 48. Nh1 {[%emt 0:00:23]} e4 {[%emt 0:00:51]} 49. Bxe4 {[%emt 0:00:32]} Kg5 {[%emt 0:00:06]} 50. Bg2 {[%emt 0:00:30]} Rd1 {[%emt 0:00:40]} 51. Kg3 {[%emt 0:00:10]} Rd3+ {[%emt 0:00:05]} 52. Kxh2 {[%emt 0:00:10]} Kf4 {[%emt 0:00:02]} 53. Ng3 {[%emt 0:00:13]} Rd8 {[%emt 0:00:18]} 54. Ne2+ {[%emt 0:00:32]} Kf5 {[%emt 0:00:16]} 55. Nd4+ {[%emt 0:00:04]} Kg6 {[%emt 0:00:06]} 56. Kg3 {[%emt 0:00:34]} Kh5 {[%emt 0:00:09]} 57. Bf1 {[%emt 0:00:02]} Re8 {[%emt 0:00:17]} 58. Be2 {[%emt 0:00:06]} Re4 {[%emt 0:00:33]} 59. Bxa6 {[%emt 0:00:16]} Re3+ {[%emt 0:00:08]} 60. Kf4 {[%emt 0:00:23]} Rc3 {[%emt 0:00:25]} 61. Be2 {[%emt 0:00:17]} Kh4 {[%emt 0:01:00]} 62. Nf5+ {[%emt 0:00:05]} Kh3 {[%emt 0:00:04]} 63. Bxg4+ {[%emt 0:00:02]} Kg2 {[%emt 0:00:07]} 64. Ne3+ {[%emt 0:00:15]} Kh2 {[%emt 0:00:25]} 65. a6 {[%emt 0:00:07]} Ra3 {[%emt 0:00:14]} 66. a7 {[%emt 0:00:03]} Ra4 {[%emt 0:00:24]} 67. Nf1+ {[%emt 0:00:14]} Kg2 {[%emt 0:00:07]} 68. Bf3+ {[%emt 0:00:03]} 1-0